[Event "Late-Titled-Tuesday-Blitz-January-30-2024"]
[Site "Chess.com"]
[Date "2024.01.30"]
[Round "1"]
[White "MrTattaglia"]
[Black "Pingah9"]
[Result "1-0"]
[WhiteElo "2971"]
[BlackElo "2519"]
[TimeControl "180+1"]
[EndTime "14:02:06 PST"]
[Termination "MrTattaglia won by resignation"]

1. e4 {[%clk 0:02:50.9]} 1... b6 {[%clk 0:03:00]} 2. d4 {[%clk 0:02:46.4]} 2...
Bb7 {[%clk 0:03:00]} 3. Nc3 {[%clk 0:02:43.8]} 3... e6 {[%clk 0:02:59.9]} 4. Bd3
{[%clk 0:02:43.1]} 4... d5 {[%clk 0:03:00]} 5. Nge2 {[%clk 0:02:32.9]} 5... Nf6
{[%clk 0:02:54.4]} 6. e5 {[%clk 0:02:31.2]} 6... Nfd7 {[%clk 0:02:54]} 7. O-O
{[%clk 0:02:30.9]} 7... c5 {[%clk 0:02:53.9]} 8. Nf4 {[%clk 0:02:11.5]} 8...
cxd4 {[%clk 0:02:38.4]} 9. Nxe6 {[%clk 0:02:10.3]} 9... fxe6 {[%clk 0:02:24.4]}
10. Qh5+ {[%clk 0:02:09.5]} 10... g6 {[%clk 0:02:24.7]} 11. Bxg6+ {[%clk
0:02:08.7]} 11... hxg6 {[%clk 0:02:25.6]} 12. Qxg6+ {[%clk 0:02:08.7]} 12... Ke7
{[%clk 0:02:26.2]} 13. Bg5+ {[%clk 0:02:07.7]} 1-0

[Event "Late-Titled-Tuesday-Blitz-January-30-2024"]
[Site "Chess.com"]
[Date "2024.01.30"]
[Round "1"]
[White "MBA_CHESS_2021"]
[Black "wqws"]
[Result "0-1"]
[WhiteElo "2252"]
[BlackElo "2607"]
[TimeControl "180+1"]
[EndTime "14:03:04 PST"]
[Termination "wqws won by resignation"]

1. e4 {[%clk 0:03:00.2]} 1... e5 {[%clk 0:02:59.5]} 2. Nf3 {[%clk 0:02:59.5]}
2... Nc6 {[%clk 0:02:59.8]} 3. Bc4 {[%clk 0:02:58.4]} 3... Nf6 {[%clk 0:02:59]}
4. d3 {[%clk 0:02:58]} 4... Be7 {[%clk 0:02:59.2]} 5. O-O {[%clk 0:02:57.7]}
5... O-O {[%clk 0:02:59.6]} 6. Nc3 {[%clk 0:02:53.9]} 6... d6 {[%clk 0:02:58.2]}
7. h3 {[%clk 0:02:53.5]} 7... h6 {[%clk 0:02:57.2]} 8. Be3 {[%clk 0:02:52]} 8...
Nh7 {[%clk 0:02:57.1]} 9. a3 {[%clk 0:02:49]} 9... Ng5 {[%clk 0:02:57.1]} 10.
Nxg5 {[%clk 0:02:45.2]} 10... Bxg5 {[%clk 0:02:55.8]} 11. Qh5 {[%clk 0:02:44.2]}
11... Be6 {[%clk 0:02:48.8]} 12. Nd5 {[%clk 0:02:40.3]} 12... Bxe3 {[%clk
0:02:23.8]} 13. fxe3 {[%clk 0:02:39.3]} 13... Kh8 {[%clk 0:02:01.4]} 14. Rf3
{[%clk 0:02:23.3]} 14... Ne7 {[%clk 0:01:58]} 15. Raf1 {[%clk 0:02:17.8]} 15...
Bxd5 {[%clk 0:01:56.9]} 16. exd5 {[%clk 0:02:06.9]} 16... f5 {[%clk 0:01:51.3]}
17. d4 {[%clk 0:02:00]} 0-1

[Event "Late-Titled-Tuesday-Blitz-January-30-2024"]
[Site "Chess.com"]
[Date "2024.01.30"]
[Round "1"]
[White "dcremisi"]
[Black "JonasGallasch"]
[Result "1-0"]
[WhiteElo "2645"]
[BlackElo "2338"]
[TimeControl "180+1"]
[EndTime "14:03:15 PST"]
[Termination "dcremisi won by resignation"]

1. d4 {[%clk 0:03:00.9]} 1... Nf6 {[%clk 0:02:58.8]} 2. c4 {[%clk 0:03:00.7]}
2... g6 {[%clk 0:02:58.7]} 3. Nc3 {[%clk 0:03:00]} 3... d5 {[%clk 0:02:58.3]} 4.
cxd5 {[%clk 0:02:59.9]} 4... Nxd5 {[%clk 0:02:59.2]} 5. e4 {[%clk 0:03:00.5]}
5... Nxc3 {[%clk 0:02:59.5]} 6. bxc3 {[%clk 0:03:01.4]} 6... Bg7 {[%clk
0:03:00]} 7. Nf3 {[%clk 0:02:59.9]} 7... c5 {[%clk 0:03:00.2]} 8. Rb1 {[%clk
0:02:59.9]} 8... O-O {[%clk 0:02:59.4]} 9. Be2 {[%clk 0:03:00.3]} 9... cxd4
{[%clk 0:02:58.3]} 10. cxd4 {[%clk 0:03:00.5]} 10... Qa5+ {[%clk 0:02:58.5]} 11.
Qd2 {[%clk 0:03:00.4]} 11... Qxd2+ {[%clk 0:02:51.5]} 12. Bxd2 {[%clk
0:03:01.3]} 12... Nc6 {[%clk 0:02:51.7]} 13. d5 {[%clk 0:03:01.5]} 13... Nd4
{[%clk 0:02:50.8]} 14. Nxd4 {[%clk 0:03:01.3]} 14... Bxd4 {[%clk 0:02:51.7]} 15.
O-O {[%clk 0:03:01.8]} 15... b6 {[%clk 0:02:50.2]} 16. Rfc1 {[%clk 0:03:01.2]}
16... e6 {[%clk 0:02:48.7]} 17. Bb4 {[%clk 0:02:59]} 17... Rd8 {[%clk
0:02:46.5]} 18. Bb5 {[%clk 0:02:58.6]} 18... Bd7 {[%clk 0:01:58.5]} 19. Be7
{[%clk 0:02:54.6]} 19... Re8 {[%clk 0:01:58.4]} 20. d6 {[%clk 0:02:45.2]} 20...
Bxb5 {[%clk 0:01:55.4]} 21. Rxb5 {[%clk 0:02:45]} 21... Bc5 {[%clk 0:01:51.4]}
22. e5 {[%clk 0:02:44.1]} 22... Rab8 {[%clk 0:01:39]} 23. Kf1 {[%clk 0:02:42]}
23... f5 {[%clk 0:01:31.9]} 24. Rcxc5 {[%clk 0:02:39.7]} 24... bxc5 {[%clk
0:01:26]} 25. Rxb8 {[%clk 0:02:39]} 25... Rxb8 {[%clk 0:01:26.9]} 26. d7 {[%clk
0:02:39.5]} 1-0

[Event "Late-Titled-Tuesday-Blitz-January-30-2024"]
[Site "Chess.com"]
[Date "2024.01.30"]
[Round "1"]
[White "Pawngobblerx2000"]
[Black "SpeedofLight0"]
[Result "0-1"]
[WhiteElo "2525"]
[BlackElo "3013"]
[TimeControl "180+1"]
[EndTime "14:03:19 PST"]
[Termination "SpeedofLight0 won by checkmate"]

1. c4 {[%clk 0:03:00.2]} 1... Nc6 {[%clk 0:02:55.2]} 2. g3 {[%clk 0:03:01.1]}
2... e5 {[%clk 0:02:55.1]} 3. Bg2 {[%clk 0:03:01.5]} 3... Bc5 {[%clk 0:02:55.7]}
4. Nc3 {[%clk 0:03:01.3]} 4... d6 {[%clk 0:02:56.2]} 5. e3 {[%clk 0:03:01.8]}
5... a6 {[%clk 0:02:56.5]} 6. Nge2 {[%clk 0:03:01.8]} 6... Nge7 {[%clk
0:02:57.1]} 7. O-O {[%clk 0:03:02.3]} 7... O-O {[%clk 0:02:57.2]} 8. d4 {[%clk
0:03:02.4]} 8... Ba7 {[%clk 0:02:58]} 9. h3 {[%clk 0:02:58.2]} 9... f5 {[%clk
0:02:57.2]} 10. a3 {[%clk 0:02:56.3]} 10... Kh8 {[%clk 0:02:56.8]} 11. b4 {[%clk
0:02:56.1]} 11... Bd7 {[%clk 0:02:43.3]} 12. c5 {[%clk 0:02:52.3]} 12... Qe8
{[%clk 0:02:34.6]} 13. Bb2 {[%clk 0:02:32.9]} 13... Rd8 {[%clk 0:02:32.4]} 14.
cxd6 {[%clk 0:02:18.2]} 14... cxd6 {[%clk 0:02:32.2]} 15. d5 {[%clk 0:02:17.2]}
15... Nb8 {[%clk 0:02:31.5]} 16. Kh2 {[%clk 0:02:16.3]} 16... Bc8 {[%clk
0:02:23.4]} 17. Qd2 {[%clk 0:02:15]} 17... Nd7 {[%clk 0:02:23.2]} 18. e4 {[%clk
0:02:05.9]} 18... Nf6 {[%clk 0:02:20.8]} 19. exf5 {[%clk 0:02:04.8]} 19... Bxf5
{[%clk 0:02:21.5]} 20. f4 {[%clk 0:02:02.6]} 20... Qh5 {[%clk 0:02:19.2]} 21.
Rae1 {[%clk 0:01:41.9]} 21... Ng4+ {[%clk 0:02:14.4]} 22. Kh1 {[%clk 0:01:41.6]}
22... Ne3 {[%clk 0:02:15.1]} 23. Kh2 {[%clk 0:01:37]} 23... Nxg2 {[%clk
0:02:14.1]} 24. Kxg2 {[%clk 0:01:34.3]} 24... Qxh3+ {[%clk 0:02:13.9]} 25. Kf3
{[%clk 0:01:32.9]} 25... e4+ {[%clk 0:02:13.7]} 26. Nxe4 {[%clk 0:01:32.2]}
26... Bg4# {[%clk 0:02:14.2]} 0-1

[Event "Late-Titled-Tuesday-Blitz-January-30-2024"]
[Site "Chess.com"]
[Date "2024.01.30"]
[Round "1"]
[White "santosalberto1987"]
[Black "Msb2"]
[Result "0-1"]
[WhiteElo "2525"]
[BlackElo "3002"]
[TimeControl "180+1"]
[EndTime "14:03:21 PST"]
[Termination "Msb2 won by resignation"]

1. e4 {[%clk 0:03:00.9]} 1... e6 {[%clk 0:03:00.2]} 2. d4 {[%clk 0:02:59.2]}
2... d5 {[%clk 0:03:00.7]} 3. Nc3 {[%clk 0:02:59.8]} 3... Nf6 {[%clk 0:03:00.8]}
4. e5 {[%clk 0:02:59.8]} 4... Nfd7 {[%clk 0:03:01.2]} 5. Nce2 {[%clk 0:02:59.6]}
5... c5 {[%clk 0:03:01.6]} 6. c3 {[%clk 0:03:00]} 6... Nc6 {[%clk 0:03:02.3]} 7.
Nf3 {[%clk 0:03:00]} 7... Be7 {[%clk 0:03:03]} 8. a3 {[%clk 0:02:58.2]} 8... O-O
{[%clk 0:03:02.1]} 9. Nf4 {[%clk 0:02:55.9]} 9... Qa5 {[%clk 0:03:02.7]} 10. Bd3
{[%clk 0:02:40]} 10... Nxd4 {[%clk 0:03:00.7]} 11. Nxd4 {[%clk 0:02:35.1]} 11...
cxd4 {[%clk 0:03:01.6]} 12. O-O {[%clk 0:01:46.9]} 12... Nxe5 {[%clk 0:02:52.1]}
13. Bxh7+ {[%clk 0:01:46.1]} 13... Kxh7 {[%clk 0:02:53]} 14. Qh5+ {[%clk
0:01:46.5]} 14... Kg8 {[%clk 0:02:53.8]} 15. Qxe5 {[%clk 0:01:47.2]} 15... Bf6
{[%clk 0:02:54.5]} 16. Qe2 {[%clk 0:01:40.1]} 16... dxc3 {[%clk 0:02:51.1]} 17.
bxc3 {[%clk 0:01:41]} 17... Qxc3 {[%clk 0:02:45.3]} 18. Rb1 {[%clk 0:01:38.8]}
18... Qe5 {[%clk 0:02:42.4]} 19. Qf3 {[%clk 0:01:34.6]} 19... Qe4 {[%clk
0:02:40.2]} 20. Qxe4 {[%clk 0:01:29.9]} 20... dxe4 {[%clk 0:02:41.1]} 21. Be3
{[%clk 0:01:30.4]} 21... b6 {[%clk 0:02:37.9]} 22. Rfc1 {[%clk 0:01:28.8]} 22...
Ba6 {[%clk 0:02:35.8]} 23. a4 {[%clk 0:01:26.9]} 23... Rfc8 {[%clk 0:02:33.8]}
24. a5 {[%clk 0:01:27]} 24... bxa5 {[%clk 0:02:32.1]} 25. Rxc8+ {[%clk
0:01:26.1]} 25... Rxc8 {[%clk 0:02:33]} 26. Bxa7 {[%clk 0:01:26.4]} 26... a4
{[%clk 0:02:33.5]} 27. h3 {[%clk 0:01:24.2]} 27... a3 {[%clk 0:02:32.7]} 0-1

[Event "Late-Titled-Tuesday-Blitz-January-30-2024"]
[Site "Chess.com"]
[Date "2024.01.30"]
[Round "1"]
[White "Sl4werThanYou"]
[Black "RichardShtivelband"]
[Result "1-0"]
[WhiteElo "2626"]
[BlackElo "2303"]
[TimeControl "180+1"]
[EndTime "14:03:25 PST"]
[Termination "Sl4werThanYou won by resignation"]

1. d4 {[%clk 0:03:00.9]} 1... d5 {[%clk 0:02:58.7]} 2. c4 {[%clk 0:03:00.1]}
2... c6 {[%clk 0:02:57.3]} 3. Nf3 {[%clk 0:02:59.6]} 3... Nf6 {[%clk 0:02:57]}
4. Nc3 {[%clk 0:02:40.8]} 4... dxc4 {[%clk 0:02:55.6]} 5. g3 {[%clk 0:02:38.2]}
5... h6 {[%clk 0:02:51.6]} 6. Bg2 {[%clk 0:02:32]} 6... Bf5 {[%clk 0:02:50.2]}
7. O-O {[%clk 0:02:30.9]} 7... e6 {[%clk 0:02:48.8]} 8. Ne5 {[%clk 0:02:30.7]}
8... Nbd7 {[%clk 0:02:44.7]} 9. Nxc4 {[%clk 0:02:26.3]} 9... Be7 {[%clk
0:02:42.9]} 10. Bf4 {[%clk 0:02:24.4]} 10... Nb6 {[%clk 0:02:40.2]} 11. Ne5
{[%clk 0:02:22.8]} 11... O-O {[%clk 0:02:38.6]} 12. e4 {[%clk 0:02:22.4]} 12...
Bh7 {[%clk 0:02:36.5]} 13. Re1 {[%clk 0:02:20.8]} 13... c5 {[%clk 0:02:32.4]}
14. d5 {[%clk 0:02:19.4]} 14... exd5 {[%clk 0:02:28.1]} 15. exd5 {[%clk
0:02:19.4]} 15... Bd6 {[%clk 0:02:23.5]} 16. a4 {[%clk 0:02:15.4]} 16... Re8
{[%clk 0:02:14.4]} 17. a5 {[%clk 0:02:13.9]} 17... Nc8 {[%clk 0:02:08.5]} 18. a6
{[%clk 0:02:12.8]} 18... b6 {[%clk 0:02:04]} 19. Nb5 {[%clk 0:02:09.6]} 19...
Bxe5 {[%clk 0:01:54.6]} 20. Bxe5 {[%clk 0:02:09]} 20... Qd7 {[%clk 0:01:47.7]}
21. Nc7 {[%clk 0:02:02.7]} 21... Rxe5 {[%clk 0:01:46.2]} 22. Rxe5 {[%clk
0:02:00]} 22... Qxc7 {[%clk 0:01:45.5]} 23. d6 {[%clk 0:02:00.8]} 1-0

[Event "Late-Titled-Tuesday-Blitz-January-30-2024"]
[Site "Chess.com"]
[Date "2024.01.30"]
[Round "1"]
[White "Bryanl106"]
[Black "miraitrunks"]
[Result "1-0"]
[WhiteElo "2575"]
[BlackElo "2133"]
[TimeControl "180+1"]
[EndTime "14:03:28 PST"]
[Termination "Bryanl106 won by resignation"]

1. e4 {[%clk 0:02:58.9]} 1... c5 {[%clk 0:02:59.8]} 2. Nf3 {[%clk 0:02:56.5]}
2... Nc6 {[%clk 0:02:59.8]} 3. d4 {[%clk 0:02:56.7]} 3... cxd4 {[%clk
0:03:00.7]} 4. Nxd4 {[%clk 0:02:55.9]} 4... e5 {[%clk 0:03:01]} 5. Nb5 {[%clk
0:02:55.3]} 5... a6 {[%clk 0:03:01.7]} 6. Nd6+ {[%clk 0:02:55.2]} 6... Bxd6
{[%clk 0:03:02.3]} 7. Qxd6 {[%clk 0:02:55.7]} 7... Qf6 {[%clk 0:03:02.8]} 8. Qd1
{[%clk 0:02:55.5]} 8... Nge7 {[%clk 0:03:02.4]} 9. Nc3 {[%clk 0:02:55.7]} 9...
O-O {[%clk 0:03:02.2]} 10. Bc4 {[%clk 0:02:54.5]} 10... b5 {[%clk 0:03:01.8]}
11. Bb3 {[%clk 0:02:53.5]} 11... b4 {[%clk 0:03:01.6]} 12. Ne2 {[%clk
0:02:52.1]} 12... Na5 {[%clk 0:02:52]} 13. O-O {[%clk 0:02:50.6]} 13... Nxb3
{[%clk 0:02:52.2]} 14. axb3 {[%clk 0:02:50.6]} 14... Bb7 {[%clk 0:02:52.5]} 15.
Ng3 {[%clk 0:02:48.9]} 15... d5 {[%clk 0:02:52.4]} 16. exd5 {[%clk 0:02:49.8]}
16... Nxd5 {[%clk 0:02:52.9]} 17. Qe1 {[%clk 0:02:48.3]} 17... Rfe8 {[%clk
0:02:45.3]} 18. Ne4 {[%clk 0:02:43.4]} 18... Qg6 {[%clk 0:02:44.2]} 19. f3
{[%clk 0:02:38.4]} 19... Rac8 {[%clk 0:02:38.9]} 20. Qf2 {[%clk 0:02:31.8]}
20... Nf4 {[%clk 0:02:33]} 21. Bxf4 {[%clk 0:02:28.9]} 21... exf4 {[%clk
0:02:33.9]} 22. Nc5 {[%clk 0:02:29.1]} 22... Bc6 {[%clk 0:02:27.6]} 23. Rxa6
{[%clk 0:02:26.9]} 23... Qf5 {[%clk 0:02:20.3]} 24. Nd3 {[%clk 0:02:24.3]} 24...
Bb5 {[%clk 0:02:12.9]} 25. Ra5 {[%clk 0:02:23]} 25... Qd7 {[%clk 0:02:12]} 26.
Rd1 {[%clk 0:01:52.4]} 26... Qe7 {[%clk 0:01:56.5]} 27. Rxb5 {[%clk 0:01:45.6]}
1-0

[Event "Late-Titled-Tuesday-Blitz-January-30-2024"]
[Site "Chess.com"]
[Date "2024.01.30"]
[Round "1"]
[White "GasconJR"]
[Black "Horokoskii"]
[Result "1-0"]
[WhiteElo "2587"]
[BlackElo "2158"]
[TimeControl "180+1"]
[EndTime "14:03:44 PST"]
[Termination "GasconJR won by resignation"]

1. e4 {[%clk 0:02:58.2]} 1... e6 {[%clk 0:02:59.7]} 2. d4 {[%clk 0:02:57.4]}
2... d5 {[%clk 0:03:00.1]} 3. Nc3 {[%clk 0:02:54.5]} 3... Nf6 {[%clk 0:02:59.6]}
4. e5 {[%clk 0:02:54]} 4... Nfd7 {[%clk 0:02:58.4]} 5. f4 {[%clk 0:02:54.2]}
5... c5 {[%clk 0:02:58.7]} 6. Nf3 {[%clk 0:02:54.7]} 6... Nc6 {[%clk 0:02:59]}
7. Be3 {[%clk 0:02:55.2]} 7... a6 {[%clk 0:02:58.7]} 8. Qd2 {[%clk 0:02:54.7]}
8... b5 {[%clk 0:02:56.8]} 9. dxc5 {[%clk 0:02:44]} 9... Bxc5 {[%clk 0:02:56.1]}
10. Bd3 {[%clk 0:02:43.2]} 10... Qb6 {[%clk 0:02:55]} 11. Bf2 {[%clk 0:02:42.4]}
11... h6 {[%clk 0:02:49.3]} 12. O-O {[%clk 0:02:39]} 12... O-O {[%clk
0:02:48.7]} 13. Kh1 {[%clk 0:02:37.8]} 13... Bxf2 {[%clk 0:02:47.4]} 14. Rxf2
{[%clk 0:02:36.8]} 14... b4 {[%clk 0:02:37.7]} 15. Na4 {[%clk 0:02:32.2]} 15...
Qa5 {[%clk 0:02:35.1]} 16. b3 {[%clk 0:02:31.8]} 16... Nc5 {[%clk 0:02:34]} 17.
Nxc5 {[%clk 0:02:18.9]} 17... Qxc5 {[%clk 0:02:34.9]} 18. Raf1 {[%clk
0:01:43.3]} 18... a5 {[%clk 0:02:32.5]} 19. Nh4 {[%clk 0:01:33.3]} 19... Ba6
{[%clk 0:02:25.3]} 20. Rf3 {[%clk 0:01:33.4]} 20... a4 {[%clk 0:02:20.7]} 21.
Rg3 {[%clk 0:01:32.1]} 21... axb3 {[%clk 0:02:17.3]} 22. f5 {[%clk 0:01:22.1]}
22... Kh8 {[%clk 0:02:10.2]} 23. Rxg7 {[%clk 0:01:18.9]} 23... Bxd3 {[%clk
0:02:02.6]} 1-0

[Event "Late-Titled-Tuesday-Blitz-January-30-2024"]
[Site "Chess.com"]
[Date "2024.01.30"]
[Round "1"]
[White "LastHeroJr"]
[Black "jcibarra"]
[Result "0-1"]
[WhiteElo "2498"]
[BlackElo "2886"]
[TimeControl "180+1"]
[EndTime "14:03:54 PST"]
[Termination "jcibarra won by resignation"]

1. e4 {[%clk 0:02:56.6]} 1... c5 {[%clk 0:02:59.7]} 2. Nf3 {[%clk 0:02:56.1]}
2... Nf6 {[%clk 0:02:58.6]} 3. e5 {[%clk 0:02:55]} 3... Nd5 {[%clk 0:02:58.7]}
4. Nc3 {[%clk 0:02:55.2]} 4... e6 {[%clk 0:02:59.2]} 5. Nxd5 {[%clk 0:02:53.5]}
5... exd5 {[%clk 0:02:59.6]} 6. d4 {[%clk 0:02:54.1]} 6... Nc6 {[%clk
0:03:00.1]} 7. dxc5 {[%clk 0:02:52.1]} 7... Bxc5 {[%clk 0:03:01]} 8. Qxd5 {[%clk
0:02:51.4]} 8... Qb6 {[%clk 0:03:00.9]} 9. Bc4 {[%clk 0:02:47.5]} 9... Bxf2+
{[%clk 0:03:00.2]} 10. Ke2 {[%clk 0:02:47.1]} 10... O-O {[%clk 0:03:00.4]} 11.
Ng5 {[%clk 0:02:35.1]} 11... Nxe5 {[%clk 0:02:37.3]} 12. Qxe5 {[%clk 0:02:25.4]}
12... d5 {[%clk 0:02:36.4]} 13. Bd3 {[%clk 0:01:25.1]} 13... Bg4+ {[%clk
0:02:32.2]} 14. Kf1 {[%clk 0:01:24.9]} 14... Rae8 {[%clk 0:02:18.9]} 15. Bxh7+
{[%clk 0:01:21.5]} 15... Kh8 {[%clk 0:02:19.1]} 16. Nxf7+ {[%clk 0:01:21.6]}
16... Kxh7 {[%clk 0:02:15.9]} 17. Ng5+ {[%clk 0:01:07.8]} 17... Kg6 {[%clk
0:02:01.7]} 0-1

[Event "Late-Titled-Tuesday-Blitz-January-30-2024"]
[Site "Chess.com"]
[Date "2024.01.30"]
[Round "1"]
[White "VladimirKramnik"]
[Black "betta2004"]
[Result "1-0"]
[WhiteElo "2939"]
[BlackElo "2512"]
[TimeControl "180+1"]
[EndTime "14:04:19 PST"]
[Termination "VladimirKramnik won by resignation"]

1. e4 {[%clk 0:03:00.9]} 1... c5 {[%clk 0:02:49.6]} 2. Nf3 {[%clk 0:03:00.3]}
2... g6 {[%clk 0:02:48.7]} 3. c3 {[%clk 0:02:58.2]} 3... d5 {[%clk 0:02:47.4]}
4. exd5 {[%clk 0:02:57.6]} 4... Qxd5 {[%clk 0:02:48.3]} 5. d4 {[%clk 0:02:57.8]}
5... Nc6 {[%clk 0:02:40.2]} 6. Na3 {[%clk 0:02:53]} 6... cxd4 {[%clk 0:02:31.6]}
7. Nb5 {[%clk 0:02:50.3]} 7... Qd8 {[%clk 0:02:27.5]} 8. Bf4 {[%clk 0:02:44.1]}
8... e5 {[%clk 0:02:20.6]} 9. Nxe5 {[%clk 0:02:42.5]} 9... Qe7 {[%clk 0:02:02]}
10. Qe2 {[%clk 0:02:41.2]} 10... Kd8 {[%clk 0:01:16.1]} 11. O-O-O {[%clk
0:02:38.5]} 11... Be6 {[%clk 0:00:59.3]} 12. Nxd4 {[%clk 0:02:21.3]} 12... Nxd4
{[%clk 0:00:55.8]} 13. Rxd4+ {[%clk 0:02:21]} 13... Kc8 {[%clk 0:00:53.6]} 14.
Nc6 {[%clk 0:01:59.5]} 14... bxc6 {[%clk 0:00:48.3]} 15. Qa6+ {[%clk 0:01:51.1]}
15... Qb7 {[%clk 0:00:46.9]} 16. Rd8+ {[%clk 0:01:43.5]} 1-0

[Event "Late-Titled-Tuesday-Blitz-January-30-2024"]
[Site "Chess.com"]
[Date "2024.01.30"]
[Round "1"]
[White "tarno17"]
[Black "cristianserban1"]
[Result "1-0"]
[WhiteElo "2092"]
[BlackElo "2552"]
[TimeControl "180+1"]
[EndTime "14:04:24 PST"]
[Termination "tarno17 won by checkmate"]

1. e4 {[%clk 0:03:00.9]} 1... g6 {[%clk 0:03:00.9]} 2. d4 {[%clk 0:03:00.6]}
2... Bg7 {[%clk 0:03:00]} 3. Be3 {[%clk 0:02:59.4]} 3... c6 {[%clk 0:02:58.7]}
4. f4 {[%clk 0:02:55.9]} 4... d5 {[%clk 0:02:58.7]} 5. Nd2 {[%clk 0:02:53.8]}
5... dxe4 {[%clk 0:02:57.7]} 6. Nxe4 {[%clk 0:02:53.6]} 6... Nf6 {[%clk
0:02:58.6]} 7. Nxf6+ {[%clk 0:02:46.1]} 7... exf6 {[%clk 0:02:58.9]} 8. Nf3
{[%clk 0:02:41.1]} 8... O-O {[%clk 0:02:58.5]} 9. Qd2 {[%clk 0:02:31.5]} 9...
Re8 {[%clk 0:02:53.1]} 10. O-O-O {[%clk 0:02:27.3]} 10... Be6 {[%clk 0:02:47.8]}
11. a3 {[%clk 0:02:20.9]} 11... Nd7 {[%clk 0:02:46.1]} 12. h4 {[%clk 0:02:19.3]}
12... h5 {[%clk 0:02:45.8]} 13. Bd3 {[%clk 0:02:17.1]} 13... b5 {[%clk
0:02:40.8]} 14. f5 {[%clk 0:02:14]} 14... Bxf5 {[%clk 0:02:24.9]} 15. Bxf5
{[%clk 0:02:13.1]} 15... gxf5 {[%clk 0:02:25.8]} 16. Bh6 {[%clk 0:01:54.5]}
16... Nb6 {[%clk 0:02:18.6]} 17. Bxg7 {[%clk 0:01:42.4]} 17... Kxg7 {[%clk
0:02:19.5]} 18. Rh3 {[%clk 0:01:42.1]} 18... Qd5 {[%clk 0:02:15.2]} 19. Rg3+
{[%clk 0:01:33.8]} 19... Kh7 {[%clk 0:02:15.2]} 20. Ng5+ {[%clk 0:01:19.7]}
20... Kg7 {[%clk 0:01:34.9]} 21. Ne6+ {[%clk 0:01:02.7]} 21... Kh7 {[%clk
0:01:31.9]} 22. Rg7+ {[%clk 0:01:01.7]} 22... Kh8 {[%clk 0:01:32.8]} 23. Qh6#
{[%clk 0:01:01.8]} 1-0

[Event "Late-Titled-Tuesday-Blitz-January-30-2024"]
[Site "Chess.com"]
[Date "2024.01.30"]
[Round "1"]
[White "Russian_berezka"]
[Black "nikitadovbnya2008"]
[Result "1-0"]
[WhiteElo "2571"]
[BlackElo "2104"]
[TimeControl "180+1"]
[EndTime "14:04:36 PST"]
[Termination "Russian_berezka won by checkmate"]

1. e4 {[%clk 0:02:58.4]} 1... c6 {[%clk 0:02:54.8]} 2. Nf3 {[%clk 0:02:56.6]}
2... d5 {[%clk 0:02:53.5]} 3. exd5 {[%clk 0:02:57.5]} 3... cxd5 {[%clk
0:02:53.3]} 4. d4 {[%clk 0:02:58.4]} 4... Nc6 {[%clk 0:02:53.4]} 5. Bd3 {[%clk
0:02:58.3]} 5... Nf6 {[%clk 0:02:53.7]} 6. O-O {[%clk 0:02:57.8]} 6... Bg4
{[%clk 0:02:53.6]} 7. c3 {[%clk 0:02:57.9]} 7... e6 {[%clk 0:02:54]} 8. Bg5
{[%clk 0:02:57]} 8... Be7 {[%clk 0:02:54.1]} 9. Nbd2 {[%clk 0:02:57.1]} 9... O-O
{[%clk 0:02:53.9]} 10. h3 {[%clk 0:02:56.4]} 10... Bh5 {[%clk 0:02:53.3]} 11.
Re1 {[%clk 0:02:56.5]} 11... Bg6 {[%clk 0:02:52.2]} 12. Qe2 {[%clk 0:02:51.7]}
12... Rb8 {[%clk 0:02:51.3]} 13. Ne5 {[%clk 0:02:49.2]} 13... Bxd3 {[%clk
0:02:48.1]} 14. Qxd3 {[%clk 0:02:50.1]} 14... Nd7 {[%clk 0:02:36.7]} 15. Bxe7
{[%clk 0:02:36.9]} 15... Qxe7 {[%clk 0:02:37.6]} 16. f4 {[%clk 0:02:36.6]} 16...
Ncxe5 {[%clk 0:02:19.4]} 17. fxe5 {[%clk 0:02:37.5]} 17... b5 {[%clk 0:02:19.9]}
18. b4 {[%clk 0:02:30.9]} 18... Nb6 {[%clk 0:02:18.9]} 19. Nb3 {[%clk
0:02:30.6]} 19... Nc4 {[%clk 0:02:10.5]} 20. Nc5 {[%clk 0:02:30.5]} 20... a5
{[%clk 0:02:10.7]} 21. bxa5 {[%clk 0:02:08.8]} 21... Nxa5 {[%clk 0:01:54.3]} 22.
a4 {[%clk 0:02:08.3]} 22... bxa4 {[%clk 0:01:51.3]} 23. Rxa4 {[%clk 0:02:08.8]}
23... Nb3 {[%clk 0:01:48.8]} 24. Na6 {[%clk 0:01:56.1]} 24... Rb6 {[%clk
0:01:40.3]} 25. Nb4 {[%clk 0:01:52.8]} 25... Rfb8 {[%clk 0:01:25.7]} 26. Rb1
{[%clk 0:01:47.2]} 26... Rxb4 {[%clk 0:01:11]} 27. Rxb4 {[%clk 0:01:38.7]} 27...
Rxb4 {[%clk 0:01:10.8]} 28. cxb4 {[%clk 0:01:39.6]} 28... Qxb4 {[%clk
0:01:11.2]} 29. Rxb3 {[%clk 0:01:36.2]} 29... Qe1+ {[%clk 0:01:11.1]} 30. Kh2
{[%clk 0:01:35.7]} 30... h5 {[%clk 0:01:08.8]} 31. Rb8# {[%clk 0:01:34.8]} 1-0

[Event "Late-Titled-Tuesday-Blitz-January-30-2024"]
[Site "Chess.com"]
[Date "2024.01.30"]
[Round "1"]
[White "vugarrasulov"]
[Black "2346PL"]
[Result "1-0"]
[WhiteElo "2949"]
[BlackElo "2514"]
[TimeControl "180+1"]
[EndTime "14:04:41 PST"]
[Termination "vugarrasulov won by resignation"]

1. e4 {[%clk 0:03:00.9]} 1... c5 {[%clk 0:02:59.8]} 2. Nf3 {[%clk 0:03:00.7]}
2... Nf6 {[%clk 0:03:00.3]} 3. Nc3 {[%clk 0:02:59.3]} 3... d5 {[%clk 0:03:00.1]}
4. exd5 {[%clk 0:02:58.1]} 4... Nxd5 {[%clk 0:03:00.5]} 5. Bb5+ {[%clk
0:02:57.7]} 5... Nc6 {[%clk 0:03:00.9]} 6. O-O {[%clk 0:02:56.4]} 6... Nxc3
{[%clk 0:02:59.3]} 7. bxc3 {[%clk 0:02:56.4]} 7... Bd7 {[%clk 0:02:56.8]} 8. d4
{[%clk 0:02:55]} 8... e6 {[%clk 0:02:54.1]} 9. Bg5 {[%clk 0:02:51.5]} 9... Qa5
{[%clk 0:02:35]} 10. Rb1 {[%clk 0:02:50.2]} 10... h6 {[%clk 0:02:22.7]} 11. Bh4
{[%clk 0:02:48.7]} 11... a6 {[%clk 0:01:57.2]} 12. Bxc6 {[%clk 0:02:41.4]} 12...
Bxc6 {[%clk 0:01:56.2]} 13. Ne5 {[%clk 0:02:42.3]} 13... Bd6 {[%clk 0:01:48.2]}
14. Nxc6 {[%clk 0:02:29.3]} 14... bxc6 {[%clk 0:01:49.1]} 15. Qg4 {[%clk
0:02:21.2]} 15... g5 {[%clk 0:00:52.9]} 16. Bg3 {[%clk 0:02:19]} 16... Be7
{[%clk 0:00:50.7]} 17. Be5 {[%clk 0:02:11.8]} 17... O-O {[%clk 0:00:47.4]} 18.
Rb7 {[%clk 0:02:04.4]} 18... Rfe8 {[%clk 0:00:46.1]} 19. Qh5 {[%clk 0:02:01.1]}
19... cxd4 {[%clk 0:00:42.3]} 20. cxd4 {[%clk 0:02:00]} 20... f6 {[%clk
0:00:20.3]} 21. Qg6+ {[%clk 0:01:58.3]} 1-0